[Event "XVI Memorial Lezcano Montalvo 2024"]
[Site "Gran Canaria"]
[Date "2024.03.23"]
[Round "1.37"]
[White "Cruz Pino, Adrian"]
[Black "Lorenzo Merino, Hector"]
[Result "1-0"]
[ECO "C42"]
[WhiteElo "2015"]
[BlackElo "1586"]
[Annotator "RC"]
[PlyCount "84"]
[EventDate "2024.03.23"]
[EventType "swiss"]
[EventCountry "ESP"]
[SourceTitle "playchess.com"]
[Source "ChessBase"]
[SourceQuality "1"]
[TimeControl "5400+30"]

1. e4 {[%emt 0:00:04]} d6 {[%emt 0:00:01]} 2. Nf3 {[%emt 0:00:18]} Nf6 {[%emt 0:00:02]} 3. Nc3 {[%emt 0:00:08]} e5 {[%emt 0:00:19]} 4. h3 {[%emt 0:00:10]} c6 {[%emt 0:00:58]} 5. d4 {[%emt 0:01:04]} Qc7 {[%emt 0:00:02]} 6. Bd3 {[%emt 0:00:22]} h6 {[%emt 0:00:15]} 7. O-O {[%emt 0:00:28]} g5 {[%emt 0:00:17]} 8. dxe5 {[%emt 0:00:50]} dxe5 {[%emt 0:00:37]} 9. Nh2 {[%emt 0:00:14]} Nbd7 {[%emt 0:00:35]} 10. Be3 {[%emt 0:00:43]} Nc5 {[%emt 0:00:14]} 11. Qf3 {[%emt 0:01:44]} Qd8 {[%emt 0:02:12]} 12. Rad1 {[%emt 0:00:30]} Nxd3 {[%emt 0:00:43]} 13. Rxd3 {[%emt 0:00:10]} Qe7 {[%emt 0:00:00]} 14. Bc5 {[%emt 0:00:34]} Qe6 {[%emt 0:00:57]} 15. Rfd1 {[%emt 0:02:24]} Bd7 {[%emt 0:00:35]} 16. Bxf8 {[%emt 0:00:26]} g4 {[%emt 0:01:59]} 17. hxg4 {[%emt 0:00:33]} Rxf8 {[%emt 0:00:33]} 18. Rd6 {[%emt 0:00:13]} Qe7 {[%emt 0:03:04]} 19. Qxf6 {[%emt 0:00:26]} Qxf6 {[%emt 0:00:19]} 20. Rxf6 {[%emt 0:00:04]} Rh8 {[%emt 0:00:18]} 21. f3 {[%emt 0:00:23]} Be6 {[%emt 0:00:29]} 22. f4 {[%emt 0:01:10]} exf4 {[%emt 1:27:01]} 23. Rxf4 {[%emt 1:29:02]} Ke7 {[%emt 0:00:00]} 24. Ne2 {[%emt 0:00:00]} Rad8 {[%emt 0:00:00]} 25. Nd4 {[%emt 0:00:00]} c5 {[%emt 0:00:00]} 26. Nf5+ {[%emt 0:00:00]} Bxf5 {[%emt 0:00:00]} 27. Rxd8 {[%emt 0:00:00]} Rxd8 {[%emt 0:00:00]} 28. gxf5 {[%emt 0:00:00]} Rd1+ {[%emt 0:00:00]} 29. Nf1 {[%emt 0:00:00]} Kf6 {[%emt 0:00:00]} 30. Kf2 {[%emt 0:00:00]} Rc1 {[%emt 0:00:00]} 31. Ne3 {[%emt 0:00:00]} Ke5 {[%emt 0:00:00]} 32. Rh4 {[%emt 0:00:00]} Rb1 {[%emt 0:00:00]} 33. Kf3 {[%emt 0:00:00]} b5 {[%emt 0:00:00]} 34. Rxh6 {[%emt 0:00:00]} f6 {[%emt 0:00:00]} 35. c3 {[%emt 0:00:00]} Rxb2 {[%emt 0:00:00]} 36. g4 {[%emt 0:00:00]} Rxa2 {[%emt 0:00:00]} 37. g5 {[%emt 0:00:00]} Kd6 {[%emt 0:00:00]} 38. Rxf6+ {[%emt 0:00:00]} Ke7 {[%emt 0:00:00]} 39. Nd5+ {[%emt 0:00:00]} Kd8 {[%emt 0:00:00]} 40. g6 {[%emt 0:00:00]} Ra1 {[%emt 0:00:00]} 41. g7 {[%emt 0:00:00]} Rf1+ {[%emt 0:00:00]} 42. Kg2 {[%emt 0:00:00]} Kd7 {[%emt 0:10:00]} 1-0

[Event "XVI Memorial Lezcano Montalvo 2024"]
[Site "Gran Canaria"]
[Date "2024.03.23"]
[Round "1.38"]
[White "Mayor Viera, Aaron"]
[Black "Blanco Garcia Bajo, David"]
[Result "0-1"]
[ECO "D02"]
[WhiteElo "1581"]
[BlackElo "2004"]
[Annotator "RC"]
[PlyCount "62"]
[EventDate "2024.03.23"]
[EventType "swiss"]
[EventCountry "ESP"]
[SourceTitle "playchess.com"]
[Source "ChessBase"]
[SourceQuality "1"]
[TimeControl "5400+30"]

1. d4 {[%emt 0:00:03]} Nf6 {[%emt 0:00:09]} 2. Bf4 {[%emt 0:00:19]} e6 {[%emt 0:00:23]} 3. Nf3 {[%emt 0:01:33]} b6 {[%emt 0:02:50]} 4. e3 {[%emt 0:02:46]} Bb7 {[%emt 0:01:07]} 5. Nbd2 {[%emt 0:00:21]} d5 {[%emt 0:02:27]} 6. Bd3 {[%emt 0:02:17]} c5 {[%emt 0:01:13]} 7. c3 {[%emt 0:00:20]} a6 {[%emt 0:01:17]} 8. a4 {[%emt 0:04:04]} Nc6 {[%emt 0:01:39]} 9. O-O {[%emt 0:02:46]} Ne7 {[%emt 0:06:33]} 10. h3 {[%emt 0:06:04]} Ng6 {[%emt 0:02:04]} 11. Bh2 {[%emt 0:00:23]} Bd6 {[%emt 0:02:53]} 12. Ne5 {[%emt 0:02:30]} Qc7 {[%emt 0:11:17]} 13. Bxg6 {[%emt 0:04:29]} hxg6 {[%emt 0:00:28]} 14. Ndf3 {[%emt 0:01:58]} Ne4 {[%emt 0:05:03]} 15. Rc1 {[%emt 0:01:08]} Rc8 {[%emt 0:05:19]} 16. Nd3 {[%emt 0:04:54]} Bxh2+ {[%emt 0:05:39]} 17. Nxh2 {[%emt 0:00:19]} g5 {[%emt 0:06:15]} 18. f4 {[%emt 0:04:18]} f6 {[%emt 0:04:35]} 19. Rf3 {[%emt 0:09:35]} Ke7 {[%emt 0:03:02]} 20. Nf2 {[%emt 0:00:54]} cxd4 {[%emt 0:05:40]} 21. exd4 {[%emt 0:03:08]} gxf4 {[%emt 0:00:18]} 22. Nd3 {[%emt 0:04:51]} g5 {[%emt 0:02:30]} 23. Ng4 {[%emt 0:03:29]} a5 {[%emt 0:00:45]} 24. Ngf2 {[%emt 0:03:12]} Kf7 {[%emt 0:03:03]} 25. b3 {[%emt 0:08:40]} Qd6 {[%emt 0:02:39]} 26. Qe1 {[%emt 0:02:44]} Qa3 {[%emt 0:01:10]} 27. c4 {[%emt 0:03:38]} Nxf2 {[%emt 0:02:52]} 28. Kxf2 {[%emt 0:04:11]} dxc4 {[%emt 0:00:31]} 29. Ra1 {[%emt 0:04:57]} Qd6 {[%emt 0:00:10]} 30. Ne5+ {[%emt 0:01:51]} fxe5 {[%emt 0:00:21]} 31. dxe5 {[%emt 0:00:11]} Qd4+ {[%emt 0:00:10]} 0-1

[Event "XVI Memorial Lezcano Montalvo 2024"]
[Site "Gran Canaria"]
[Date "2024.03.23"]
[Round "1.39"]
[White "Pleschke, Julius Jonas"]
[Black "Gavilan Ledezma, Kevin"]
[Result "1-0"]
[ECO "D07"]
[WhiteElo "1993"]
[BlackElo "1580"]
[Annotator "RC"]
[PlyCount "33"]
[EventDate "2024.03.23"]
[EventType "swiss"]
[EventCountry "ESP"]
[SourceTitle "playchess.com"]
[Source "ChessBase"]
[SourceQuality "1"]
[TimeControl "5400+30"]

1. Nf3 {[%emt 0:00:11]} Nc6 {[%emt 0:00:25]} 2. d4 {[%emt 0:00:08]} d5 {[%emt 0:00:27]} 3. c4 {[%emt 0:00:09]} Bg4 {[%emt 0:02:34]} 4. cxd5 {[%emt 0:05:02]} Qxd5 {[%emt 0:02:28]} 5. Nc3 {[%emt 0:00:10]} Qd7 {[%emt 0:00:53]} 6. d5 {[%emt 0:01:45]} Bxf3 {[%emt 0:00:50]} 7. exf3 {[%emt 0:00:35]} Ne5 {[%emt 0:01:19]} 8. Qd4 {[%emt 0:02:57]} Nc6 {[%emt 0:02:53]} 9. Qf4 {[%emt 0:01:55]} Nb8 {[%emt 0:02:43]} 10. Be3 {[%emt 0:01:50]} Nf6 {[%emt 0:00:28]} 11. Rd1 {[%emt 0:01:29]} e6 {[%emt 0:01:08]} 12. Bb5 {[%emt 0:01:52]} c6 {[%emt 0:03:50]} 13. dxc6 {[%emt 0:00:19]} Qxd1+ {[%emt 0:02:46]} 14. Kxd1 {[%emt 0:00:33]} Nxc6 {[%emt 0:00:00]} 15. Bxc6+ {[%emt 0:00:38]} bxc6 {[%emt 0:00:00]} 16. Qc7 {[%emt 0:00:30]} c5 {[%emt 0:00:08]} 17. Qc6+ {[%emt 0:00:09]} 1-0

[Event "XVI Memorial Lezcano Montalvo 2024"]
[Site "Gran Canaria"]
[Date "2024.03.23"]
[Round "1.40"]
[White "Rodriguez Trujillo, Cristian"]
[Black "Perez Garcia, Jimena"]
[Result "0-1"]
[ECO "B90"]
[WhiteElo "1573"]
[BlackElo "1992"]
[Annotator "RC"]
[PlyCount "58"]
[EventDate "2024.03.23"]
[EventType "swiss"]
[EventCountry "ESP"]
[SourceTitle "playchess.com"]
[Source "ChessBase"]
[SourceQuality "1"]
[TimeControl "5400+30"]

1. e4 {[%emt 0:00:06]} c5 {[%emt 0:00:16]} 2. Nf3 {[%emt 0:00:28]} d6 {[%emt 0:00:13]} 3. d4 {[%emt 0:01:36]} cxd4 {[%emt 0:00:20]} 4. Nxd4 {[%emt 0:00:53]} Nf6 {[%emt 0:00:23]} 5. Nc3 {[%emt 0:00:27]} a6 {[%emt 0:00:21]} 6. Bd3 {[%emt 0:01:34]} e5 {[%emt 0:01:27]} 7. Nf3 {[%emt 0:04:01]} Be7 {[%emt 0:00:51]} 8. h3 {[%emt 0:04:13]} O-O {[%emt 0:01:02]} 9. O-O {[%emt 0:00:09]} h6 {[%emt 0:00:25]} 10. Qe2 {[%emt 0:03:00]} Be6 {[%emt 0:01:24]} 11. Bc4 {[%emt 0:05:17]} Nc6 {[%emt 0:05:12]} 12. Nd5 {[%emt 0:05:53]} Bxd5 {[%emt 0:07:36]} 13. Bxd5 {[%emt 0:04:10]} Rc8 {[%emt 0:04:04]} 14. Bd2 {[%emt 0:09:50]} Nxd5 {[%emt 0:03:57]} 15. exd5 {[%emt 0:01:52]} Na5 {[%emt 0:00:46]} 16. Bc3 {[%emt 0:08:30]} Nc4 {[%emt 0:04:21]} 17. b3 {[%emt 0:02:11]} Na3 {[%emt 0:04:55]} 18. Qd2 {[%emt 0:00:44]} e4 {[%emt 0:08:16]} 19. Nd4 {[%emt 0:05:12]} Bg5 {[%emt 0:02:00]} 20. Qe1 {[%emt 0:03:33]} Qc7 {[%emt 0:03:33]} 21. Bd2 {[%emt 0:03:40]} Nxc2 {[%emt 0:11:47]} 22. Nxc2 {[%emt 0:01:20]} Bxd2 {[%emt 0:08:11]} 23. Qxd2 {[%emt 0:00:18]} Qxc2 {[%emt 0:00:06]} 24. Qb4 {[%emt 0:00:53]} b5 {[%emt 0:12:56]} 25. Qxd6 {[%emt 0:12:31]} Qd2 {[%emt 0:04:59]} 26. Rfd1 {[%emt 0:04:08]} Qg5 {[%emt 0:00:59]} 27. Qxa6 {[%emt 0:01:30]} e3 {[%emt 0:13:40]} 28. fxe3 {[%emt 0:02:35]} Rc2 {[%emt 0:00:00]} 29. g4 {[%emt 0:03:08]} Qxe3+ {[%emt 0:00:00]} 0-1

[Event "XVI Memorial Lezcano Montalvo 2024"]
[Site "Gran Canaria"]
[Date "2024.03.23"]
[Round "1.41"]
[White "Segura Marsa, Andres"]
[Black "Almeida Afonso, Dolores Francisca"]
[Result "1-0"]
[ECO "A25"]
[WhiteElo "1987"]
[BlackElo "1572"]
[Annotator "RC"]
[PlyCount "72"]
[EventDate "2024.03.23"]
[EventType "swiss"]
[EventCountry "ESP"]
[SourceTitle "playchess.com"]
[Source "ChessBase"]
[SourceQuality "1"]
[TimeControl "5400+30"]

1. c4 {[%emt 0:00:05]} e5 {[%emt 0:00:44]} 2. Nc3 {[%emt 0:00:11]} Nf6 {[%emt 0:00:13]} 3. g3 {[%emt 0:00:34]} Bc5 {[%emt 0:00:46]} 4. Bg2 {[%emt 0:00:45]} O-O {[%emt 0:02:26]} 5. e3 {[%emt 0:00:14]} d6 {[%emt 0:01:13]} 6. Nge2 {[%emt 0:00:20]} Nc6 {[%emt 0:03:49]} 7. O-O {[%emt 0:00:15]} Bf5 {[%emt 0:01:45]} 8. d3 {[%emt 0:01:40]} Rb8 {[%emt 0:08:01]} 9. Na4 {[%emt 0:04:55]} Qd7 {[%emt 0:13:29]} 10. a3 {[%emt 0:02:00]} a5 {[%emt 0:05:02]} 11. Nec3 {[%emt 0:07:20]} Ne7 {[%emt 0:05:39]} 12. d4 {[%emt 0:01:51]} Ba7 {[%emt 0:02:43]} 13. Nb5 {[%emt 0:00:36]} Nc8 {[%emt 0:02:45]} 14. b4 {[%emt 0:05:23]} b6 {[%emt 0:06:05]} 15. Bb2 {[%emt 0:03:23]} Re8 {[%emt 0:07:16]} 16. Nac3 {[%emt 0:07:06]} c6 {[%emt 0:03:40]} 17. Nxa7 {[%emt 0:00:48]} Nxa7 {[%emt 0:00:03]} 18. dxe5 {[%emt 0:02:53]} dxe5 {[%emt 0:01:13]} 19. Qxd7 {[%emt 0:10:53]} Nxd7 {[%emt 0:02:05]} 20. Rfd1 {[%emt 0:02:16]} Rbd8 {[%emt 0:02:10]} 21. Ne4 {[%emt 0:00:57]} Bxe4 {[%emt 0:06:31]} 22. Bxe4 {[%emt 0:00:05]} f6 {[%emt 0:00:30]} 23. Rd6 {[%emt 0:06:02]} Nb8 {[%emt 0:05:32]} 24. Rad1 {[%emt 0:00:36]} Rxd6 {[%emt 0:00:43]} 25. Rxd6 {[%emt 0:00:02]} Nc8 {[%emt 0:02:19]} 26. Rd1 {[%emt 0:00:33]} Kf7 {[%emt 0:00:27]} 27. bxa5 {[%emt 0:00:45]} bxa5 {[%emt 0:00:22]} 28. Bc3 {[%emt 0:00:12]} a4 {[%emt 0:00:52]} 29. Ba5 {[%emt 0:08:35]} Ke6 {[%emt 0:03:55]} 30. Bc2 {[%emt 0:01:54]} Nd6 {[%emt 0:05:14]} 31. Bxa4 {[%emt 0:00:22]} Rc8 {[%emt 0:01:37]} 32. Rb1 {[%emt 0:06:46]} Nd7 {[%emt 0:02:25]} 33. Be1 {[%emt 0:04:15]} Nxc4 {[%emt 0:01:45]} 34. Bb3 {[%emt 0:01:05]} Ndb6 {[%emt 0:00:07]} 35. Ba5 {[%emt 0:00:36]} Rb8 {[%emt 0:00:31]} 36. Bxb6 {[%emt 0:22:17]} Kd5 {[%emt 0:00:47]} 1-0

[Event "XVI Memorial Lezcano Montalvo 2024"]
[Site "Gran Canaria"]
[Date "2024.03.23"]
[Round "1.42"]
[White "Arana Martin, Ivan"]
[Black "Sosa Suarez, Carla Cristina"]
[Result "0-1"]
[ECO "C01"]
[WhiteElo "1570"]
[BlackElo "1980"]
[Annotator "RC"]
[PlyCount "48"]
[EventDate "2024.03.23"]
[EventType "swiss"]
[EventCountry "ESP"]
[SourceTitle "playchess.com"]
[Source "ChessBase"]
[SourceQuality "1"]
[TimeControl "5400+30"]

1. e4 {[%emt 0:00:14]} e6 {[%emt 0:00:03]} 2. d4 {[%emt 0:00:13]} d5 {[%emt 0:00:01]} 3. Nc3 {[%emt 0:00:28]} Be7 {[%emt 0:00:17]} 4. exd5 {[%emt 0:01:08]} exd5 {[%emt 0:00:07]} 5. Nf3 {[%emt 0:00:21]} Nf6 {[%emt 0:00:26]} 6. Bd3 {[%emt 0:00:23]} O-O {[%emt 0:00:14]} 7. O-O {[%emt 0:00:07]} Bg4 {[%emt 0:00:22]} 8. Bf4 {[%emt 0:01:22]} c6 {[%emt 0:01:17]} 9. Be2 {[%emt 0:01:27]} Nbd7 {[%emt 0:02:17]} 10. Ne5 {[%emt 0:03:15]} Bxe2 {[%emt 0:02:13]} 11. Qxe2 {[%emt 0:00:10]} Re8 {[%emt 0:00:55]} 12. Rfe1 {[%emt 0:01:13]} Bb4 {[%emt 0:05:59]} 13. Qd3 {[%emt 0:01:03]} Nxe5 {[%emt 0:06:34]} 14. Rxe5 {[%emt 0:02:21]} Bd6 {[%emt 0:13:13]} 15. Rxe8+ {[%emt 0:00:34]} Nxe8 {[%emt 0:00:01]} 16. Bxd6 {[%emt 0:00:19]} Nxd6 {[%emt 0:00:32]} 17. Re1 {[%emt 0:00:44]} Qf6 {[%emt 0:00:29]} 18. h3 {[%emt 0:05:26]} h6 {[%emt 0:07:40]} 19. Re3 {[%emt 0:03:32]} Nc4 {[%emt 0:11:30]} 20. Rf3 {[%emt 0:02:26]} Nxb2 {[%emt 0:06:17]} 21. Rxf6 {[%emt 0:01:45]} Nxd3 {[%emt 0:00:31]} 22. Rf3 {[%emt 0:07:10]} Ne1 {[%emt 0:03:50]} 23. Rf4 {[%emt 0:08:29]} Nxc2 {[%emt 0:00:10]} 24. Na4 {[%emt 0:16:22]} b6 {[%emt 0:01:02]} 0-1

[Event "XVI Memorial Lezcano Montalvo 2024"]
[Site "Gran Canaria"]
[Date "2024.03.24"]
[Round "2.1"]
[White "Lopez Pereyra, Antonio"]
[Black "Dvirnyy, Danyyil"]
[Result "0-1"]
[ECO "C77"]
[WhiteElo "2069"]
[BlackElo "2482"]
[Annotator "RC"]
[PlyCount "66"]
[EventDate "2024.03.23"]
[EventType "swiss"]
[EventCountry "ESP"]
[SourceTitle "playchess.com"]
[Source "ChessBase"]
[SourceQuality "1"]
[TimeControl "5400+30"]

1. e4 {[%emt 0:00:18]} e5 {[%emt 0:00:36]} 2. Nf3 {[%emt 0:01:18]} Nc6 {[%emt 0:00:11]} 3. Bb5 {[%emt 0:00:42]} a6 {[%emt 0:00:13]} 4. Ba4 {[%emt 0:00:09]} Nf6 {[%emt 0:01:09]} 5. Qe2 {[%emt 0:01:29]} b5 {[%emt 0:00:43]} 6. Bb3 {[%emt 0:00:04]} Bc5 {[%emt 0:00:09]} 7. a4 {[%emt 0:01:52]} Rb8 {[%emt 0:01:11]} 8. axb5 {[%emt 0:02:09]} axb5 {[%emt 0:00:07]} 9. Nc3 {[%emt 0:01:24]} O-O {[%emt 0:04:44]} 10. O-O {[%emt 0:12:19]} d6 {[%emt 0:03:04]} 11. Nd5 {[%emt 0:18:54]} Bg4 {[%emt 0:10:24]} 12. c3 {[%emt 0:01:26]} Nxd5 {[%emt 0:04:19]} 13. Bxd5 {[%emt 0:02:23]} Ne7 {[%emt 0:01:02]} 14. d4 {[%emt 0:20:01]} exd4 {[%emt 0:01:36]} 15. cxd4 {[%emt 0:02:41]} Bxd4 {[%emt 0:01:35]} 16. Qd3 {[%emt 0:05:22]} Bf6 {[%emt 0:02:38]} 17. Nd4 {[%emt 0:04:44]} Bd7 {[%emt 0:03:50]} 18. Ra7 {[%emt 0:07:57]} c5 {[%emt 0:01:28]} 19. Nf5 {[%emt 0:01:31]} Bxf5 {[%emt 0:07:38]} 20. exf5 {[%emt 0:00:05]} c4 {[%emt 0:02:00]} 21. Qe4 {[%emt 0:01:25]} Nxd5 {[%emt 0:01:52]} 22. Qxd5 {[%emt 0:00:02]} Be5 {[%emt 0:00:17]} 23. Be3 {[%emt 0:03:49]} Bxb2 {[%emt 0:04:16]} 24. Rb1 {[%emt 0:00:06]} Qf6 {[%emt 0:00:58]} 25. g4 {[%emt 0:04:25]} Qe5 {[%emt 0:07:40]} 26. Qd2 {[%emt 0:00:01]} Bc3 {[%emt 0:00:25]} 27. Qd1 {[%emt 0:02:34]} Qe4 {[%emt 0:01:14]} 28. Rc1 {[%emt 0:00:31]} Be5 {[%emt 0:00:33]} 29. h3 {[%emt 0:01:48]} Ra8 {[%emt 0:00:50]} 30. Re7 {[%emt 0:00:13]} Rfe8 {[%emt 0:02:33]} 31. Rxe8+ {[%emt 0:01:24]} Rxe8 {[%emt 0:00:06]} 32. Qd2 {[%emt 0:01:47]} Qf3 {[%emt 0:00:31]} 33. Qc2 {[%emt 0:01:19]} Qxh3 {[%emt 0:00:20]} 0-1

[Event "XVI Memorial Lezcano Montalvo 2024"]
[Site "Gran Canaria"]
[Date "2024.03.24"]
[Round "2.2"]
[White "Kovchan, Alexander"]
[Black "Perez Bolanos, Joel"]
[Result "1-0"]
[ECO "C63"]
[WhiteElo "2477"]
[BlackElo "2046"]
[Annotator "TA"]
[PlyCount "49"]
[EventDate "2024.03.23"]
[EventType "swiss"]
[EventCountry "ESP"]
[SourceTitle "playchess.com"]
[Source "ChessBase"]
[SourceQuality "1"]
[TimeControl "5400+30"]

{[%evp 14,49,34,43,63,58,56,57,53,62,68,52,91,93,104,27,89,66,197,125,169,163,203,191,209,171,286,290,283,289,338,326,505,514,514,514,506,502]} 1. e4 {[%emt 0:00:04]} e5 {[%emt 0:02:38]} 2. Nf3 {[%emt 0:00:11]} Nc6 {[%emt 0:00:06]} 3. Bb5 {[%emt 0:00:13]} f5 {[%emt 0:00:22]} 4. Nc3 {[%emt 0:00:32]} fxe4 {[%emt 0:00:52]} 5. Nxe4 {[%emt 0:00:13]} Nf6 {[%emt 0:00:33]} 6. Qe2 {[%emt 0:01:03]} d5 {[%emt 0:00:40]} 7. Nxf6+ {[%emt 0:00:29]} gxf6 {[%emt 0:00:11]} 8. d4 {[%emt 0:00:27]} e4 {[%emt 0:00:08]} 9. Nh4 {[%emt 0:00:38] And now Qh5+ would win.} Be6 {[%emt 0:00:38]} 10. O-O {[%emt 0:00:31]} Qd7 {[%emt 0:04:34] White is slightly better.} 11. f3 $1 {[%emt 0:02:09]} O-O-O {[%emt 0:04:13]} 12. fxe4 {[%emt 0:00:35] [#] c4 would now be deadly.} dxe4 {[%emt 0:01:08]} 13. c3 {[%emt 0:00:12]} Rg8 {[%emt 0:13:21]} 14. Be3 {[%emt 0:22:36]} (14. Rxf6 $6 Be7 15. Rf4 Rde8 $11) (14. Qxe4 $16 {[%cal Oc1f4]} Bd6 15. Qc2 (15. Rxf6 Bd5 $11)) 14... Rg4 {[%emt 0:07:39]} (14... Kb8 $11) 15. Qf2 $16 {[%emt 0:01:42][%cal Oa1d1]} Be7 {[%emt 0:07:43] [#]} (15... Rg8 $14) 16. Be2 {[%emt 0:02:44]} (16. Rad1 $1 $18 {[%cal Od4d5] d5! is the strong threat.} Qe8 17. d5 Rxd5 18. Rxd5 Bxd5 19. h3 (19. Bxa7 e3 $11) 19... Rxh4 20. Qxh4) 16... Rg7 {[%emt 0:08:02]} 17. Nf5 {[%emt 0:01:27]} Bxf5 {[%emt 0:01:00]} 18. Qxf5 {[%emt 0:00:03]} Rdg8 {[%emt 0:00:07]} 19. g3 {[%emt 0:04:26]} (19. Qxe4 Rxg2+ 20. Qxg2 Rxg2+ 21. Kxg2 Bd6 $11) 19... Bd6 {[%emt 0:11:55]} (19... Rxg3+ $142 20. hxg3 Rxg3+ 21. Kh1 Qxf5 22. Rxf5 Rxe3) 20. Qxd7+ $18 {[%emt 0:01:19]} (20. Qxe4 f5 21. Qc2 (21. Qxf5 Rxg3+ 22. hxg3 Rxg3+ 23. Kh1 Rh3+ 24. Kg2 Rg3+ 25. Kh1 Rh3+ 26. Kg1 Rg3+ 27. Kh1 $11) (21. Rxf5 $2 {is the wrong capture.} Re8 $19) 21... Bxg3 22. hxg3 Rxg3+ 23. Kf2 Qe6 $11) (20. Qxf6 Bxg3 21. hxg3 Rxg3+ 22. Kf2 Qh3 $16) 20... Kxd7 {[%emt 0:00:33]} 21. Rxf6 {[%emt 0:03:10]} Ke7 {[%emt 0:02:28]} 22. Rh6 {[%emt 0:01:25]} Bxg3 {[%emt 0:04:17]} (22... Nd8 $142 23. Rf1 Kd7) 23. hxg3 {[%emt 0:00:16] White is clearly winning.} Rxg3+ {[%emt 0:00:03]} 24. Kf2 {[%emt 0:00:09]} Rg2+ {[%emt 0:00:11]} 25. Ke1 {[%emt 0:00:30] Weighted Error Value: White=0.17 (very precise) /Black=0.47.  Mistake:       	White=2     	Black=4      Inaccurate:     	---       	Black=2      OK:         	White=8     	Black=4      Best:        	White=3     	---        Strong:       	White=1     	---} 1-0

[Event "XVI Memorial Lezcano Montalvo 2024"]
[Site "Gran Canaria"]
[Date "2024.03.24"]
[Round "2.3"]
[White "Perez Bolanos, David"]
[Black "Kurajica, Bojan"]
[Result "0-1"]
[ECO "E47"]
[WhiteElo "2053"]
[BlackElo "2444"]
[Annotator "TA"]
[PlyCount "60"]
[EventDate "2024.03.23"]
[EventType "swiss"]
[EventCountry "ESP"]
[SourceTitle "playchess.com"]
[Source "ChessBase"]
[SourceQuality "1"]
[TimeControl "5400+30"]

{[%evp 13,60,55,58,45,46,28,36,36,34,25,33,-1,35,28,47,46,43,43,46,34,55,52,72,8,79,81,79,47,93,96,92,78,114,102,100,55,94,-95,-96,-95,-94,-108,-106,-94,-110,-547,-552,-668,-635]} 1. d4 {[%emt 0:02:23]} Nf6 {[%emt 0:00:07]} 2. c4 {[%emt 0:00:10]} e6 {[%emt 0:00:05][%cal Be7e6,Be6e5][%mdl 32]} 3. Nc3 {[%emt 0:00:08]} Bb4 {[%emt 0:00:07]} 4. e3 {[%emt 0:00:07]} d6 {[%emt 0:01:36]} 5. Bd3 {[%emt 0:00:18]} e5 {[%emt 0:07:02]} 6. Nge2 {[%emt 0:04:16]} c6 {[%emt 0:00:26]} 7. O-O {[%emt 0:02:37]} O-O {[%emt 0:00:39]} 8. Bc2 {[%emt 0:09:12]} Nbd7 {[%emt 0:06:24][%cal Bb8d7,Bd7f8,Bf8g6][%mdl 32]} 9. Qd3 {[%emt 0:03:02]} Re8 {[%emt 0:03:59]} 10. Ng3 {[%emt 0:01:15] White is slightly better.} Nf8 {[%emt 0:05:56]} 11. Rd1 {[%emt 0:08:17]} Ng6 {[%emt 0:08:01]} 12. a3 {[%emt 0:04:54]} Ba5 {[%emt 0:02:53][%cal Bb4a5,Ba5c7,Bc7b8][%mdl 32]} 13. b4 {[%emt 0:01:48]} Bc7 {[%emt 0:00:08]} 14. d5 {[%emt 0:00:30]} cxd5 {[%emt 0:08:18]} 15. cxd5 {[%emt 0:05:48]} a5 {[%emt 0:04:55]} 16. Bb2 {[%emt 0:05:07]} Ng4 {[%emt 0:00:47]} 17. Nb5 {[%emt 0:12:44]} Bb8 {[%emt 0:05:24]} 18. bxa5 {[%emt 0:03:00]} (18. h3 $16 Nf6 19. Qb3) 18... Rxa5 {[%emt 0:03:29]} (18... Qh4 $11 19. h3 Nxf2 20. Kxf2 f5) 19. Bc3 $16 {[%emt 0:01:30]} Ra6 {[%emt 0:00:39]} 20. a4 {[%emt 0:06:40][%cal Ba3a4,Ba4a5][%mdl 32]} Qh4 {[%emt 0:05:17]} (20... Qg5 $14 {should be considered.}) 21. h3 {[%emt 0:01:20]} Nh6 {[%emt 0:00:06]} 22. a5 {[%emt 0:02:59]} Bd7 {[%emt 0:08:19]} 23. Ra4 {[%emt 0:11:23]} Qe7 {[%emt 0:00:13]} 24. Kh2 {[%emt 0:02:16]} f5 {[%emt 0:02:14]} 25. f4 $2 {[%emt 0:01:44] [#]} (25. Rb1 $16) 25... Ng4+ $1 {[%emt 0:04:22]} 26. hxg4 {[%emt 0:03:18]} Qh4+ {[%emt 0:00:04]} 27. Kg1 {[%emt 0:00:07]} Qxg3 {[%emt 0:00:03]} 28. Be1 {[%emt 0:06:18]} (28. gxf5 $2 {perishes.} Nh4 29. Qf1 Bxb5 $19 (29... Nxf5 30. Bxf5 Qxe3+ 31. Kh2 $15) (29... Qxe3+ 30. Kh2 $17)) 28... Qxg4 {[%emt 0:00:16][%cal Re5f4] Black is more active.} 29. Rd2 $2 {[%emt 0:00:26][%mdl 8192] [#]} (29. fxe5 $17 {nothing else works.} Nxe5 30. Rxg4 Nxd3 31. Rxg7+ Kxg7 32. Bxd3) 29... exf4 $19 {[%emt 0:01:19]} 30. Bd1 {[%emt 0:01:09]} Qg5 {[%emt 0:00:08] Weighted Error Value: White=0.54/Black=0.16 (very precise) .  Loses game:     	White=1     	---        Mistake:       	White=2     	Black=2      Inaccurate:     	White=3     	Black=3      OK:         	White=4     	Black=8      Best:        	White=4     	Black=2} 0-1